bitfinex/quotes_ETHUSD_20251015
["timestamp","ask_amount","ask_price","bid_price","bid_amount"]
[1760532841489,28.96660316,4100.5,4100.4,0.002]
[1760532842401,24.38268016,4100.5,4100.4,0.002]
[1760532842572,21.89768016,4100.5,4100.4,0.002]
[1760532842900,12.33587198,4100.5,4100.4,0.002]
[1760532843189,4.43914698,4100.5,4100.4,0.002]
[1760532843398,6.92514698,4100.5,4100.4,0.002]
[1760532843598,7.04274698,4100.5,4100.4,0.002]
[1760532843909,6.92514698,4100.5,4100.4,0.002]
[1760532845096,5.58542,4100.5,4100.4,0.002]
[1760532845336,8.02414698,4100.5,4100.4,0.002]
[1760532846213,4.43914698,4100.5,4100.4,0.002]
[1760532846416,8.02414698,4100.5,4100.4,0.002]
[1760532847120,2.00042,4100.5,4100.4,0.002]
[1760532847440,3.585,4100.5,4100.4,0.4525]
[1760532848206,3.585,4100.5,4100.4,0.002]
[1760532850439,3.585,4100.5,4100.4,0.4565]
[1760532850754,3.585,4100.5,4100.4,2.89528645]
[1760532850951,2.43839336,4101.1,4100.4,2.89528645]
[1760532851135,1.099,4100.5,4100.4,2.89528645]
[1760532851334,1.3293,4101.9,4100.5,2.4386752]
[1760532851537,2.43825513,4101.3,4100.6,2.43865392]
[1760532851732,2.43825023,4101.4,4100.6,2.43865392]
[1760532851933,1.099,4101.3,4100.6,2.89315392]
[1760532852447,3.53690392,4101.9,4100.7,0.4545]
[1760532852638,1.099,4101.8,4101.2,2.4383039]
[1760532852829,2.486,4101.7,4101.2,2.4383039]
[1760532853028,2.486,4101.7,4101.3,2.89274066]
[1760532853476,2.486,4101.7,4101.3,0.4545]
[1760532854142,0.1216,4101.3,4101.0,2.43841667]
[1760532854344,2.486,4101.2,4100.9,2.43848911]
[1760532854678,1.099,4101.9,4101.1,2.43831409]
[1760532854859,1.728,4101.7,4101.3,2.43823849]
[1760532855060,1.728,4101.7,4101.4,0.4545]
[1760532855247,1.728,4101.7,4101.5,0.4545]
[1760532855578,1.099,4101.9,4101.5,0.4545]
[1760532855744,3.585,4101.8,4101.6,0.4545]
[1760532856074,3.585,4101.8,4101.7,0.4545]
[1760532856570,1.099,4101.9,4101.7,0.4545]
[1760532856932,0.1216,4101.7,4101.3,0.4545]
[1760532857126,0.1216,4101.5,4100.8,0.6797]
[1760532857357,5.313,4101.8,4101.0,2.43842965]
[1760532857358,0.1216,4101.1,4101.0,2.43842965]
[1760532857706,2.6076,4101.1,4101.0,2.89292965]
[1760532857833,0.1216,4101.1,4101.0,2.89292965]
[1760532858029,3.7066,4101.1,4101.0,2.89292965]
[1760532858358,3.7066,4101.1,4100.8,0.2252]
[1760532858562,0.37066,4101.0,4100.3,0.002]
[1760532858784,0.1216,4100.5,4100.3,0.002]
[1760532858941,2.6076,4100.5,4100.3,0.002]
[1760532861670,2.6076,4100.5,4100.3,2.44083674]
[1760532861844,2.6076,4100.5,4100.3,0.002]
[1760532863655,6.91872698,4100.5,4100.3,0.002]
[1760532864435,15.85113298,4100.5,4100.3,0.002]
[1760532864642,16.77337298,4100.5,4100.3,0.002]
[1760532865297,15.79838898,4100.5,4100.3,0.002]
[1760532865740,10.42921598,4100.5,4100.3,0.002]
[1760532866481,4.45536698,4100.5,4100.3,0.002]
[1760532866637,4.59976698,4100.5,4100.3,0.002]
[1760532866836,8.04036698,4100.5,4100.3,0.002]
[1760532867277,2.01664,4100.5,4100.3,0.002]
[1760532867454,5.313,4100.5,4100.3,0.002]
[1760532870406,5.313,4100.5,4100.4,0.4565]
[1760532870980,1.099,4100.5,4100.4,2.89528645]
[1760532871197,3.585,4100.5,4100.4,2.89528645]
[1760532871537,2.438296,4101.3,4100.6,2.43865448]
[1760532871679,0.001,4102.1,4100.7,0.4545]
[1760532872004,0.001,4102.1,4100.4,0.002]
[1760532872005,2.43918628,4101.5,4100.4,0.4565]
[1760532872298,1.504,4101.4,4100.9,2.43846409]
[1760532872504,1.504,4101.4,4101.0,2.43841458]
[1760532872876,1.504,4101.4,4100.9,2.43847008]
[1760532873083,0.1457,4101.3,4100.6,2.43861763]
[1760532873401,0.3537,4101.2,4100.4,2.44077801]
[1760532873710,0.16507,4101.3,4100.4,0.102]
[1760532873911,4.16632681,4101.2,4100.4,2.54077061]
[1760532874404,2.43843093,4101.0,4100.4,2.54077061]
[1760532874563,2.486,4100.9,4100.5,2.43872109]
[1760532875063,2.486,4100.9,4100.5,0.4545]
[1760532875264,4.16632412,4101.2,4100.5,2.89322484]
[1760532875466,2.43840622,4101.1,4100.5,0.4545]
[1760532875907,2.43840622,4101.1,4100.5,2.89321937]
[1760532876409,0.1216,4100.5,4100.4,0.102]
[1760532876698,2.6076,4100.5,4100.4,2.54078645]
[1760532877301,2.6076,4100.5,4100.4,2.99528645]
[1760532877499,3.7066,4100.5,4100.4,3.56142303]
[1760532877914,0.001,4101.5,4100.5,2.43872698]
[1760532878085,0.1216,4100.8,4100.6,2.43866751]
[1760532878284,2.486,4100.7,4100.6,2.43866751]
[1760532878597,0.1216,4100.8,4100.7,2.43860804]
[1760532878791,3.7066,4100.8,4100.7,3.44764925]
[1760532879793,0.1216,4100.8,4100.7,3.44764925]
[1760532879993,3.7056,4100.8,4100.7,3.44764925]
[1760532881608,0.001,4101.5,4100.7,3.44764925]
[1760532881778,0.001,4101.5,4101.4,2.43819183]
[1760532881974,3.585,4101.5,4101.4,2.43819183]
[1760532884575,0.1216,4101.4,4101.1,2.6729633]
[1760532884780,0.1216,4101.4,4101.2,2.43831073]
[1760532885013,3.585,4101.5,4101.4,2.43819183]
[1760532887422,1.728,4101.3,4100.4,0.102]
[1760532887624,2.43840819,4101.1,4100.4,0.102]
[1760532887828,2.485,4101.0,4100.4,0.102]
[1760532888015,2.43863446,4100.7,4100.4,0.102]
[1760532888327,2.485,4100.6,4100.4,0.102]
[1760532890048,2.485,4100.6,4100.5,2.43872698]
[1760532891248,2.485,4100.6,4100.5,2.44072698]
[1760532891636,2.485,4100.6,4100.5,0.002]
[1760532891816,2.485,4100.6,4100.5,2.44072698]
[1760532893046,0.3595,4101.5,4100.5,0.002]
[1760532893247,1.728,4101.3,4100.5,2.44072053]
[1760532893419,1.728,4101.3,4100.5,0.002]
[1760532893934,1.728,4101.3,4100.6,2.43866751]
[1760532894168,0.1239,4101.2,4100.6,2.43866751]
[1760532894336,0.1239,4101.2,4100.6,2.43864769]
[1760532895074,0.1239,4101.2,4100.5,0.002]
[1760532895075,0.1239,4101.2,4100.7,2.43860513]
[1760532895381,0.1239,4101.1,4100.7,2.43860513]
[1760532895579,2.485,4101.0,4100.7,2.43860513]
[1760532895973,2.6089,4101.0,4100.7,2.43860513]
[1760532896144,2.485,4101.0,4100.6,2.43865231]
[1760532896345,2.485,4101.0,4100.5,1.73]
[1760532896346,2.485,4101.0,4100.5,4.16872538]
[1760532896546,2.485,4101.0,4100.8,2.43853399]
[1760532896774,2.485,4101.0,4100.7,2.4385594]
[1760532897081,2.485,4101.0,4100.5,4.16872538]
[1760532897374,2.485,4101.0,4100.7,2.43858885]
[1760532897673,2.485,4101.0,4100.8,2.43854808]
[1760532897845,2.485,4101.0,4100.7,2.43856966]
[1760532898187,2.485,4101.0,4100.5,2.44066883]
[1760532898344,0.344,4100.9,4100.6,2.43865182]
[1760532898760,0.3432,4100.9,4100.6,2.43865182]
[1760532899076,0.3432,4100.9,4100.7,2.43860572]
[1760532899652,0.1216,4100.7,4100.5,0.002]
[1760532899862,2.485,4100.6,4100.5,0.002]
[1760532900575,4.92366751,4100.6,4100.5,0.002]
[1760532900783,2.485,4100.6,4100.5,0.002]
[1760532900951,2.6199,4100.6,4100.5,0.002]
[1760532901477,2.99638,4100.6,4100.5,0.002]
[1760532902096,0.001,4101.5,4100.6,2.43866751]
[1760532902381,1.099,4100.6,4100.5,2.90812698]
[1760532902584,2.665,4100.6,4100.5,2.44072698]
[1760532903859,2.7999,4100.6,4100.5,0.002]
[1760532904068,7.26856751,4100.6,4100.5,0.002]
[1760532904757,17.26411851,4100.6,4100.5,0.002]
[1760532904959,16.46411851,4100.6,4100.5,0.002]
[1760532905793,8.35331751,4100.6,4100.5,0.002]
[1760532905958,10.83831751,4100.6,4100.5,0.002]
[1760532906700,14.63874151,4100.6,4100.5,0.002]
[1760532906905,14.32274151,4100.6,4100.5,0.002]
[1760532907263,10.17874551,4100.6,4100.5,0.012]
[1760532907458,10.31364551,4100.6,4100.5,0.012]
[1760532907762,16.89549351,4100.6,4100.5,0.012]
[1760532908790,19.57347951,4100.6,4100.5,0.012]
[1760532909322,18.33460551,4100.6,4100.5,0.012]
[1760532909706,29.36452251,4100.6,4100.5,0.012]
[1760532909901,27.88718051,4100.6,4100.5,0.012]
[1760532910817,6.33616751,4100.6,4100.5,0.012]
[1760532911014,25.71879451,4100.6,4100.5,0.012]
[1760532911388,25.19627651,4100.6,4100.5,0.012]
[1760532911786,38.82116751,4100.6,4100.5,0.012]
[1760532913800,19.19553251,4100.6,4100.5,0.012]
[1760532914007,12.25525951,4100.6,4100.5,0.012]
[1760532914891,36.22341951,4100.6,4100.5,0.012]
[1760532915212,31.72932551,4100.6,4100.5,0.012]
[1760532915587,28.35241251,4100.6,4100.5,0.012]
[1760532915818,26.84107851,4100.6,4100.5,0.012]
[1760532916132,22.53059251,4100.6,4100.5,0.012]
[1760532916330,21.29309251,4100.6,4100.5,0.012]
[1760532916495,19.69792451,4100.6,4100.5,0.012]
[1760532916702,19.36728551,4100.6,4100.5,0.012]
[1760532916892,13.52640551,4100.6,4100.5,0.012]
[1760532917094,11.52640551,4100.6,4100.5,0.012]
[1760532917511,14.99591206,4100.6,4100.5,0.012]
[1760532917916,16.06531506,4100.6,4100.5,0.012]
[1760532918121,15.40287906,4100.6,4100.5,0.012]
[1760532918891,16.62157006,4100.6,4100.5,0.012]
[1760532919096,15.91718906,4100.6,4100.5,0.012]
[1760532919597,12.62234851,4100.6,4100.5,0.012]
[1760532919990,29.54785751,4100.6,4100.5,0.012]
[1760532920194,29.68365751,4100.6,4100.5,0.012]
[1760532920394,33.28806406,4100.6,4100.5,0.012]
[1760532921091,19.06489806,4100.6,4100.5,0.012]
[1760532921422,3.83966751,4100.6,4100.5,0.012]
[1760532921722,8.05266751,4100.6,4100.5,0.4653]
[1760532921926,5.312,4100.6,4100.5,0.4653]
[1760532922290,5.26486751,4100.6,4100.5,0.012]
[1760532922694,13.79970851,4100.6,4100.5,0.012]
[1760532923023,13.93710851,4100.6,4100.5,0.012]
[1760532923521,16.42210851,4100.6,4100.5,0.012]
[1760532923726,12.83348451,4100.6,4100.5,0.012]
[1760532924223,12.97088451,4100.6,4100.5,0.012]
[1760532924625,34.01348151,4100.6,4100.5,0.012]
[1760532925197,34.01348151,4100.6,4100.5,1e-08]
[1760532925630,37.31716051,4100.6,4100.5,1e-08]
[1760532926209,36.47778051,4100.6,4100.5,1e-08]
[1760532926402,32.19496851,4100.6,4100.5,1e-08]
[1760532926630,32.45414651,4100.6,4100.5,1e-08]
[1760532927719,32.45415351,4100.6,4100.5,1e-08]
[1760532928112,20.56314006,4100.6,4100.5,1e-08]
[1760532928313,20.56314006,4100.6,4100.5,0.00200001]
[1760532928610,20.56414006,4100.6,4100.5,0.00200001]
[1760532928813,24.10684006,4100.6,4100.5,0.00200001]
[1760532929018,22.21866606,4100.6,4100.5,0.00200001]
[1760532929828,33.58707906,4100.6,4100.5,0.00200001]
[1760532930134,26.79065198,4100.5,4100.4,1e-08]
[1760532930314,27.42425198,4100.5,4100.4,1e-08]
[1760532930515,27.56165198,4100.5,4100.4,1e-08]
[1760532930718,28.57433798,4100.5,4100.4,1e-08]
[1760532930917,26.50606798,4100.5,4100.4,1e-08]
[1760532931255,25.26734598,4100.5,4100.4,1e-08]
[1760532931741,13.06177853,4100.5,4100.4,1e-08]
[1760532932306,4.16672698,4100.5,4100.4,0.45330001]
[1760532932538,11.05547298,4100.5,4100.4,0.45330001]
[1760532932942,14.62422498,4100.5,4100.4,0.45330001]
[1760532933627,14.62422498,4100.5,4100.4,1e-08]
[1760532933846,15.92839298,4100.5,4100.4,0.45330001]
[1760532934135,12.42693198,4100.5,4100.4,0.45330001]
[1760532934440,10.03193198,4100.5,4100.4,0.45330001]
[1760532934638,7.75072698,4100.5,4100.4,0.45330001]
[1760532938039,5.312,4100.5,4100.4,0.45330001]
[1760532938534,7.75072698,4100.5,4100.4,0.45330001]
[1760532939538,5.312,4100.5,4100.4,0.45330001]
[1760532939929,7.75072698,4100.5,4100.4,0.45330001]
[1760532940266,7.75072698,4100.5,4100.4,1e-08]
[1760532940472,7.75072698,4100.5,4100.4,0.46910001]
[1760532941127,5.312,4100.5,4100.4,0.46910001]
[1760532941962,7.75072698,4100.5,4100.4,0.46910001]
[1760532942649,5.312,4100.5,4100.4,0.46910001]
[1760532944470,2.827,4100.5,4100.4,0.46910001]
[1760532944692,3.584,4100.5,4100.4,2.90788646]
[1760532944893,0.001,4100.6,4100.5,2.43872698]
[1760532945049,0.001,4100.6,4100.5,2.90782698]
[1760532945050,3.585,4100.6,4100.5,2.90782698]
[1760532945246,3.585,4100.6,4100.5,0.4691]
[1760532945483,3.585,4100.6,4100.5,2.90782698]
[1760532945780,3.5842,4100.6,4100.5,2.90782698]
[1760532946298,3.5842,4100.6,4100.5,0.4691]
[1760532946801,3.5842,4100.6,4100.5,2.90782698]
[1760532951999,1.0992,4100.6,4100.5,3.46449359]
[1760532952183,3.2382,4100.6,4100.5,3.46449359]
[1760532953098,3.2382,4100.6,4100.5,6.46697769]
[1760532953299,3.2382,4100.6,4100.5,3.46449359]
[1760532954082,3.2382,4100.6,4100.5,5.19249359]
[1760532959638,0.001,4101.1,4101.0,2.43842965]
[1760532959785,0.001,4101.1,4101.0,2.68227261]
[1760532960125,0.001,4101.1,4101.0,3.14857261]
[1760532960541,0.001,4101.1,4101.0,6.15105671]
[1760532961024,2.132,4101.1,4101.0,6.15105671]
[1760532963120,0.001,4101.4,4101.2,2.43831073]
[1760532963329,0.001,4101.4,4101.3,6.99663212]
[1760532963534,0.1317,4102.8,4102.7,2.43741926]
[1760532963886,0.1216,4102.7,4102.3,2.43760233]
[1760532964081,2.483,4102.6,4102.5,2.43753523]
[1760532964285,0.1216,4102.3,4101.4,2.43819183]
[1760532964485,0.1216,4101.9,4101.5,0.38267886]
[1760532964685,2.483,4101.8,4101.7,2.4380135]
[1760532965597,2.483,4101.8,4101.7,2.9043135]
[1760532967302,2.483,4101.8,4101.7,2.4380135]
[1760532967502,2.483,4101.8,4101.7,2.9043135]
[1760532967820,2.483,4101.8,4101.7,3.73279719]
[1760532968894,2.483,4101.8,4101.7,3.26649719]
[1760532969314,1.098,4102.2,4102.1,2.43777577]
[1760532969493,1.2196,4102.2,4102.1,2.43777577]
[1760532970593,3.7026,4102.2,4102.1,2.43777577]
[1760532971127,3.8343,4102.2,4102.1,2.43777577]
[1760532971316,3.7026,4102.2,4102.1,2.43777577]
[1760532972234,3.8343,4102.2,4102.1,2.43777577]
[1760532975310,3.8343,4102.2,4101.3,0.1216]
[1760532975311,6.8367841,4102.2,4101.3,0.1216]
[1760532975622,6.7151841,4102.2,4100.8,0.1216]
[1760532975825,6.7151841,4102.2,4100.5,0.002]
[1760532975826,3.0024841,4101.6,4101.0,2.43841618]
[1760532976014,0.1216,4101.0,4100.5,0.002]
[1760532976192,2.482,4100.9,4100.8,2.43854857]
[1760532976995,2.8365,4100.9,4100.8,2.43854857]
[1760532978446,2.8365,4100.9,4100.5,0.002]
[1760532978613,0.1216,4100.6,4100.5,2.44072698]
[1760532978807,0.2454,4100.6,4100.5,0.002]
[1760532979526,3.58,4100.6,4100.5,0.002]
[1760532979911,3.58,4100.6,4100.5,2.44072698]
[1760532987734,3.7059,4100.6,4100.5,0.002]
[1760532987945,4.09957,4100.6,4100.5,0.002]
[1760532988106,4.09957,4100.6,4100.5,2.44072698]
[1760532988848,4.09957,4100.6,4100.5,0.002]
[1760532989062,6.53823751,4100.6,4100.5,0.002]
[1760532989642,8.26623751,4100.6,4100.5,0.002]
[1760532990334,18.09211351,4100.6,4100.5,0.002]
[1760532990848,17.38246751,4100.6,4100.5,0.002]
[1760532991351,14.34028751,4100.6,4100.5,0.002]
[1760532992143,8.26623751,4100.6,4100.5,0.002]
[1760532992341,16.62441451,4100.6,4100.5,0.002]
[1760532993010,16.02935851,4100.6,4100.5,0.002]
[1760532993212,16.60797451,4100.6,4100.5,0.002]
[1760532993557,17.12865861,4100.6,4100.5,0.002]
[1760532993711,14.12617451,4100.6,4100.5,0.002]
[1760532994139,5.78443751,4100.6,4100.5,0.002]
[1760532994340,21.75432761,4100.6,4100.5,0.002]
[1760532994850,24.23632761,4100.6,4100.5,0.002]
[1760532995012,24.35597534,4100.6,4100.5,0.002]
[1760532995345,39.43133034,4100.6,4100.5,0.002]
[1760532995672,38.19383034,4100.6,4100.5,0.002]
[1760532996340,38.30374134,4100.6,4100.5,0.002]
[1760532996522,34.92192698,4100.5,4100.4,1e-08]
[1760532996724,35.18755698,4100.5,4100.4,1e-08]
[1760532996929,35.31265698,4100.5,4100.4,1e-08]
[1760532997539,38.9180959,4100.5,4100.4,1e-08]
[1760532997740,35.03816582,4100.1,4100.0,0.002]
[1760532997947,37.68330082,4100.1,4100.0,0.002]
[1760532998114,37.80840082,4100.1,4100.0,0.002]
[1760532998315,39.17661782,4100.1,4100.0,0.002]
[1760532998515,38.96446982,4100.1,4100.0,0.002]
[1760532999318,38.99627282,4100.1,4100.0,0.002]
[1760532999720,31.91081882,4100.1,4100.0,0.002]
[1760533000462,34.91081382,4100.1,4100.0,0.002]
[1760533001422,29.83492182,4100.1,4100.0,0.002]
[1760533001831,27.21467682,4100.1,4100.0,0.002]
[1760533002441,30.92324182,4100.1,4100.0,0.002]
[1760533002817,29.68574182,4100.1,4100.0,0.002]
[1760533003423,11.40677382,4100.1,4100.0,0.002]
[1760533003623,29.79566282,4100.1,4100.0,0.002]
[1760533003823,29.53580682,4100.1,4100.0,0.002]
[1760533004451,31.03131982,4100.1,4100.0,0.002]
[1760533004854,29.79381982,4100.1,4100.0,0.002]
[1760533005455,28.71861882,4100.1,4100.0,0.002]
[1760533006931,19.84802482,4100.1,4100.0,0.002]
[1760533007530,12.38067382,4100.1,4100.0,0.002]
[1760533007731,38.32303382,4100.1,4100.0,0.002]
[1760533008040,30.91823582,4100.1,4100.0,0.002]
[1760533008551,30.93959382,4100.1,4100.0,0.002]
[1760533008754,21.78084682,4100.1,4100.0,0.002]
[1760533009662,21.05885382,4100.1,4100.0,0.002]
[1760533010460,16.53902182,4100.1,4100.0,0.002]
[1760533010681,18.33341582,4100.1,4100.0,0.002]
[1760533010864,12.38067382,4100.1,4100.0,0.002]
[1760533011028,11.40759892,4100.1,4100.0,0.002]
[1760533011233,13.84656382,4100.1,4100.0,0.002]
[1760533011538,13.84656382,4100.1,4100.0,0.4317]
[1760533011742,14.27653682,4100.1,4100.0,0.4317]
[1760533011947,11.74707382,4100.1,4100.0,0.002]
[1760533012150,13.83938982,4100.1,4100.0,0.4317]
[1760533012350,7.794986,4100.1,4100.0,0.4317]
[1760533012550,10.2244579,4100.1,4100.0,0.4317]
[1760533012743,5.70267,4100.1,4100.0,0.4317]
[1760533013346,8.1416349,4100.1,4100.0,0.4317]
[1760533014641,16.5939839,4100.1,4100.0,0.002]
[1760533014873,28.13833482,4100.1,4100.0,0.002]
[1760533015175,24.67932482,4100.1,4100.0,0.002]
[1760533015665,23.44182482,4100.1,4100.0,0.002]
[1760533015868,24.66931482,4100.1,4100.0,0.002]
[1760533016270,24.66851482,4100.1,4100.0,0.002]
[1760533016860,27.16254682,4100.1,4100.0,0.002]
[1760533017443,26.18051782,4100.1,4100.0,0.002]
[1760533017660,26.81411782,4100.1,4100.0,0.002]
[1760533017849,26.92403582,4100.1,4100.0,0.002]
[1760533018771,23.98242182,4100.1,4100.0,0.002]
[1760533018967,25.92281882,4100.1,4100.0,0.002]
[1760533019478,25.56418382,4100.1,4100.0,0.002]
[1760533019981,29.32381282,4100.1,4100.0,0.002]
[1760533020783,29.19871282,4100.1,4100.0,0.002]
[1760533020982,18.93785982,4100.1,4100.0,0.002]
[1760533022085,0.001,4100.3,4100.0,0.002]
[1760533022290,1.099,4100.1,4100.0,0.4608]
[1760533022463,1.099,4100.1,4100.0,2.89982439]
[1760533022654,3.581,4100.1,4100.0,2.59907363]
[1760533022855,3.581,4100.1,4100.0,3.10309491]
[1760533023676,0.001,4100.3,4100.2,2.43890541]
[1760533024083,3.582,4100.3,4100.2,2.43890541]
[1760533024689,3.582,4100.3,4100.2,2.89770541]
[1760533032065,0.001,4100.3,4100.2,2.89770541]
[1760533032297,3.581,4100.3,4100.2,3.4941362]
[1760533033764,3.581,4100.3,4100.0,0.50402128]
[1760533033963,0.1216,4100.2,4100.1,2.4389649]
[1760533034900,0.1216,4100.2,4100.1,2.9117649]
[1760533035897,0.1216,4100.2,4100.1,2.4389649]
[1760533036518,0.1216,4100.2,4100.1,2.9117649]
[1760533036869,0.1216,4100.2,4100.0,0.002]
[1760533037079,0.5389,4100.2,4100.0,0.002]
[1760533038122,0.4173,4100.1,4100.0,0.002]
[1760533038277,4.5842649,4100.1,4100.0,0.002]
[1760533038485,15.4695839,4100.1,4100.0,0.002]
[1760533038678,12.4299989,4100.1,4100.0,0.002]
[1760533039018,10.6924659,4100.1,4100.0,0.002]
[1760533039379,10.1557629,4100.1,4100.0,0.002]
[1760533039577,5.2178649,4100.1,4100.0,0.002]
[1760533039780,2.1445,4100.1,4100.0,0.002]
[1760533039975,8.1624649,4100.1,4100.0,0.002]
[1760533041012,5.7235,4100.1,4100.0,0.002]
[1760533041214,8.1624649,4100.1,4100.0,0.002]
[1760533042495,11.76790382,4100.1,4100.0,0.002]
[1760533043786,10.03990382,4100.1,4100.0,0.002]
[1760533044183,3.579,4100.1,4100.0,0.002]
[1760533044387,0.1216,4100.2,4100.0,0.002]
[1760533044615,0.001,4100.3,4100.2,2.43890541]
[1760533044806,3.58,4100.3,4100.2,3.20327595]
[1760533045505,0.001,4100.3,4100.2,3.20327595]
[1760533045716,3.58,4100.3,4100.2,3.20327595]
[1760533047005,3.58,4100.3,4100.2,2.73047595]
[1760533047607,3.58,4100.3,4100.2,3.20327595]
[1760533048923,3.58,4100.3,4100.2,2.73047595]
[1760533049427,3.58,4100.3,4100.2,3.20327595]
[1760533049721,3.58,4100.3,4100.2,2.43890541]
[1760533050318,3.58,4100.3,4100.0,0.002]
[1760533050529,3.58,4100.3,4100.2,2.43890541]
[1760533051090,3.58,4100.3,4100.2,2.91170541]
[1760533052432,3.58,4100.3,4100.2,2.43890541]
[1760533054396,0.1216,4100.2,4100.1,2.43895434]
[1760533055532,0.1216,4100.2,4100.0,0.002]
[1760533055697,0.82776,4100.1,4100.0,0.002]
[1760533055900,0.1216,4100.2,4100.0,0.002]
[1760533056230,0.4576,4100.1,4100.0,0.002]
[1760533057134,2.8965649,4100.1,4100.0,0.002]
[1760533057337,1.099,4100.1,4100.0,2.91382439]
[1760533057634,3.578,4100.1,4100.0,2.91382439]
[1760533057834,3.578,4100.1,4100.0,3.44931676]
[1760533059633,0.001,4100.3,4100.2,2.43890541]
[1760533059819,3.579,4100.3,4100.2,2.43890541]
[1760533060212,3.579,4100.3,4100.2,2.88610541]
[1760533062931,3.579,4100.3,4100.2,2.43890541]
[1760533063513,3.5782,4100.3,4100.2,2.43890541]
[1760533064311,3.5782,4100.3,4100.2,2.98064763]
[1760533065443,3.5782,4100.3,4100.2,2.43890541]
[1760533076267,4.0056,4100.3,4100.2,2.43890541]
[1760533077172,4.0056,4100.3,4100.1,2.4389649]
[1760533077470,0.4274,4100.2,4100.1,2.4389649]
[1760533080572,3.5782,4100.3,4100.2,2.43890541]
[1760533080771,4.0056,4100.3,4100.2,2.43890541]
[1760533080951,3.5782,4100.3,4100.2,2.43890541]
[1760533081672,1.0992,4100.3,4100.2,5.91151006]
[1760533081963,3.6988,4100.3,4100.2,6.7581331]
[1760533082182,0.1218,4100.3,4100.2,6.7581331]
[1760533082357,3.6988,4100.3,4100.2,6.7581331]
[1760533083513,3.6988,4100.3,4100.2,3.75632845]
[1760533083686,3.6988,4100.3,4100.2,3.7807175]
[1760533083971,3.5772,4100.3,4100.2,6.78252215]
[1760533084180,0.0002,4100.3,4100.2,10.39353775]
[1760533084379,0.001,4100.8,4100.7,2.43860804]
[1760533084675,0.001,4101.2,4101.0,0.6336]
[1760533084893,0.001,4102.2,4101.7,2.4380135]
[1760533085055,1.1,4101.8,4101.7,2.46239363]
[1760533085245,1.1,4101.8,4101.7,5.93499828]
[1760533085443,1.1,4101.8,4101.7,3.74612258]
[1760533085876,3.545,4101.8,4101.7,3.27532258]
[1760533086446,3.545,4101.8,4101.7,3.74612258]
[1760533086882,3.5772,4101.8,4101.7,3.74612258]
[1760533087086,0.0002,4101.8,4101.7,3.77050271]
[1760533087385,3.5772,4101.8,4101.7,3.77050271]
[1760533087585,3.5772,4101.8,4101.7,3.74612258]
[1760533089107,0.0002,4101.8,4101.7,5.47412258]
[1760533089259,1.098,4102.1,4102.0,2.4378352]
[1760533089453,1.098,4102.1,4102.0,3.94362234]
[1760533090191,0.001,4102.2,4102.1,2.43777577]
[1760533090369,2.604,4102.2,4102.1,4.66315352]
[1760533090688,2.604,4102.2,4102.1,4.16577577]
[1760533090999,2.604,4102.2,4102.1,4.63877577]
[1760533091290,3.576,4102.2,4102.1,5.47160558]
[1760533091899,0.001,4102.2,4102.1,5.47160558]
[1760533092192,3.576,4102.2,4102.1,5.47160558]
[1760533092795,1.098,4102.2,4102.1,5.47160558]
[1760533092990,1.099,4102.4,4102.2,2.43771634]
[1760533093193,1.099,4102.3,4102.2,3.67091298]
[1760533093567,0.001,4102.3,4102.2,4.14391298]
[1760533093802,1.099,4102.3,4102.2,4.14391298]
[1760533094301,3.576,4102.3,4102.2,3.79251298]
[1760533095295,3.576,4102.3,4102.2,4.26551298]
[1760533095692,0.001,4102.3,4102.2,4.26551298]
[1760533095897,3.576,4102.3,4102.2,4.26551298]
[1760533096097,3.576,4102.3,4102.2,3.79251298]
[1760533097205,3.575,4102.3,4102.2,3.79251298]
[1760533097911,4.0296,4102.3,4102.2,3.79251298]
[1760533099317,3.575,4102.3,4102.2,3.79251298]
[1760533103774,4.0296,4102.3,4102.2,2.55931634]
[1760533104184,3.575,4102.3,4102.2,2.55931634]
[1760533104475,3.575,4102.3,4102.2,2.43771634]
[1760533104476,3.6966,4102.3,4102.2,2.43771634]
[1760533104702,1.099,4102.3,4102.2,2.43771634]
[1760533105012,3.575,4102.3,4102.2,2.43771634]
[1760533105172,3.575,4102.3,4102.2,3.22851082]
[1760533105375,1e-08,4102.7,4102.2,3.22851082]
[1760533105616,1e-08,4102.7,4102.6,12.62040224]
[1760533105772,1.71400001,4102.7,4102.6,12.62040224]
[1760533106072,0.001,4102.8,4102.7,2.43741926]
[1760533106275,0.001,4102.8,4102.7,7.06886116]
[1760533106902,0.4498,4104.2,4104.1,2.4365878]
[1760533107105,4.0228,4104.2,4104.1,2.4365878]
[1760533107996,4.0228,4104.2,4103.1,0.73288798]
[1760533108349,4.0228,4104.2,4104.1,2.4365878]
[1760533110515,4.022,4104.2,4104.1,2.4365878]
[1760533111403,0.2209,4104.4,4104.3,2.43646906]
[1760533111602,3.6499,4104.4,4104.2,2.43651497]
[1760533111799,3.6499,4104.4,4103.2,0.473]
[1760533112000,0.2209,4104.4,4103.2,0.473]
[1760533112209,3.573,4104.3,4104.2,2.43652843]
[1760533112718,4.0197,4104.3,4104.2,2.43652843]
[1760533114311,3.573,4104.3,4104.2,0.42921011]
[1760533114516,3.573,4104.3,4104.2,2.43652843]
[1760533114687,4.0175,4104.3,4104.2,2.43652843]
[1760533115088,3.573,4104.3,4104.2,2.43652843]
[1760533115984,4.0175,4104.3,4104.2,2.43652843]
[1760533116189,4.0175,4104.3,4103.4,5.43282819]
[1760533116402,0.1216,4104.2,4104.1,2.43654776]
[1760533116797,0.5661,4104.2,4104.1,2.43654776]